fUSD/lending_fUSD_20240114
["ID","MTS","AMOUNT","RATE_DAILY","PERIOD"]
[311615837,1705265480907,-601.15,0.00031232,2]
[311615838,1705265480917,-665.95,0.00031232,2]
[311615839,1705265480927,-500.0,0.00031232,2]
[311615840,1705265480937,-500.0,0.00031232,2]
[311615841,1705265480946,-500.0,0.00031232,2]
[311615842,1705265480956,-500.0,0.00031232,2]
[311615843,1705265480965,-500.0,0.00031232,2]
[311615844,1705265480975,-626.87,0.00031232,2]
[311615845,1705265480984,-562.08,0.00031232,2]
[311615846,1705265480994,-500.0,0.00031232,2]
[311615847,1705265481004,-500.0,0.00031232,2]
[311615848,1705265481014,-500.0,0.00031232,2]
[311615849,1705265481023,-500.0,0.00031232,2]
[311615850,1705265481033,-727.57,0.00031232,2]
[311615851,1705265481043,-560.21,0.00031232,2]
[311615852,1705265481052,-500.0,0.00031232,2]
[311615853,1705265481061,-500.0,0.00031232,2]
[311615854,1705265481071,-500.0,0.00031232,2]
[311615855,1705265481081,-500.0,0.00031232,2]
[311615856,1705265481091,-500.0,0.00031232,2]
[311615857,1705265481100,-500.0,0.00031232,2]
[311615858,1705265481110,-500.0,0.00031232,2]
[311615859,1705265481119,-500.0,0.00031232,2]
[311615860,1705265481129,-500.0,0.00031232,2]
[311615861,1705265481138,-500.0,0.00031232,2]
[311615862,1705265481148,-500.0,0.00031232,2]
[311615863,1705265481158,-500.0,0.00031232,2]
[311615864,1705265481168,-607.16,0.00031232,2]
[311615865,1705265481178,-982.04,0.00031232,2]
[311615866,1705265481187,-500.0,0.00031232,2]
[311615867,1705265481197,-600.07,0.00031232,2]
[311615868,1705265481206,-500.0,0.00031232,2]
[311615869,1705265481216,-500.0,0.00031232,2]
[311615870,1705265481226,-1048.4,0.00031232,2]
[311615871,1705265481236,-500.0,0.00031232,2]
[311615872,1705265481246,-950.82,0.00031232,2]
[311615873,1705265481256,-500.0,0.00031232,2]
[311615874,1705265481267,-586.62799834,0.00031232,2]
[311615875,1705265481277,-775.5,0.00031232,2]
[311615876,1705265481288,-500.0,0.00031232,2]
[311615877,1705265481298,-806.58,0.00031232,2]
[311615878,1705265481308,-500.0,0.00031232,2]
[311615879,1705265481318,-500.0,0.00031232,2]
[311615880,1705265481328,-748.97,0.00031232,2]
[311615881,1705265481338,-500.0,0.00031232,2]
[311615882,1705265481349,-500.0,0.00031232,2]
[311615883,1705265481359,-500.0,0.00031232,2]
[311615884,1705265481370,-300.11426475,0.00031232,2]
[311615885,1705265481381,-544.49,0.00031232,2]
[311615886,1705265481390,-500.0,0.00031232,2]
[311615887,1705265481401,-500.0,0.00031232,2]
[311615888,1705265481410,-500.0,0.00031232,2]
[311615889,1705265481420,-671.61,0.00031232,2]
[311615890,1705265481430,-500.0,0.00031232,2]
[311615891,1705265481440,-500.0,0.00031232,2]
[311615892,1705265481450,-500.0,0.00031232,2]
[311615893,1705265481460,-500.0,0.00031232,2]
[311615894,1705265481470,-500.0,0.00031232,2]
[311615895,1705265481480,-500.0,0.00031232,2]
[311615896,1705265481490,-500.0,0.00031232,2]
[311615897,1705265481500,-602.2,0.00031232,2]
[311615898,1705265481509,-769.86,0.00031232,2]
[311615899,1705265481519,-500.0,0.00031232,2]
[311615900,1705265481529,-500.0,0.00031232,2]
[311615901,1705265481538,-500.0,0.00031232,2]
[311615902,1705265481548,-250.3251101,0.00031232,2]
[311615903,1705265481558,-500.0,0.00031232,2]
[311615904,1705265481567,-500.0,0.00031232,2]
[311615905,1705265481578,-500.0,0.00031232,2]
[311615906,1705265481587,-500.0,0.00031232,2]
[311615907,1705265481597,-500.0,0.00031232,2]
[311615908,1705265481606,-500.0,0.00031232,2]
[311615909,1705265481616,-500.0,0.00031232,2]
[311615910,1705265481626,-692.82,0.00031232,2]
[311615911,1705265481636,-507.31,0.00031232,2]
[311615912,1705265481646,-228.39011061,0.00031232,2]
[311615913,1705265481655,-500.0,0.00031232,2]
[311615914,1705265481666,-500.0,0.00031232,2]
[311615915,1705265481675,-500.0,0.00031232,2]
[311615916,1705265481685,-729.84,0.00031232,2]
[311615917,1705265481695,-536.68,0.00031232,2]
[311615918,1705265481704,-583.46,0.00031232,2]
[311615919,1705265481714,-500.0,0.00031232,2]
[311615920,1705265481723,-500.0,0.00031232,2]
[311615921,1705265481733,-500.0,0.00031232,2]
[311615922,1705265481743,-500.0,0.00031232,2]
[311615923,1705265481753,-500.0,0.00031232,2]
[311615924,1705265481764,-500.0,0.00031232,2]
[311615925,1705265481774,-1000.1,0.00031232,2]
[311615926,1705265481784,-319.26361549,0.00031232,2]
[311615927,1705265481794,-500.0,0.00031232,2]
[311615928,1705265481804,-500.0,0.00031232,2]
[311615929,1705265481813,-500.0,0.00031232,2]
[311615930,1705265481823,-793.74,0.00031232,2]
[311615931,1705265481832,-702.71,0.00031232,2]
[311615932,1705265481842,-500.0,0.00031232,2]
[311615933,1705265481852,-500.0,0.00031232,2]
[311615934,1705265481862,-500.0,0.00031232,2]
[311615935,1705265481873,-923.77,0.00031232,2]
[311615936,1705265481882,-500.0,0.00031232,2]
[311615937,1705265481892,-500.0,0.00031232,2]
[311615938,1705265481903,-629.36,0.00031232,2]
[311615939,1705265481913,-500.0,0.00031232,2]
[311615940,1705265481923,-500.0,0.00031232,2]
[311615941,1705265481932,-867.3,0.00031232,2]
[311615942,1705265481942,-500.0,0.00031232,2]
[311615943,1705265481951,-500.0,0.00031232,2]
[311615944,1705265481961,-500.0,0.00031232,2]
[311615945,1705265481971,-361.08290668,0.00031232,2]
[311615946,1705265481981,-581.81,0.00031232,2]
[311615947,1705265481990,-624.05,0.00031232,2]
[311615948,1705265482000,-830.39,0.00031232,2]
[311615949,1705265482009,-500.0,0.00031232,2]
[311615950,1705265482019,-500.0,0.00031232,2]
[311615951,1705265482029,-677.4,0.00031232,2]
[311615952,1705265482038,-1100.99,0.00031232,2]
[311615953,1705265482048,-525.17,0.00031232,2]
[311615954,1705265482057,-500.0,0.00031232,2]
[311615955,1705265482068,-500.0,0.00031232,2]
[311615956,1705265482077,-586.11,0.00031232,2]
[311615957,1705265482086,-500.0,0.00031232,2]
[311615958,1705265482096,-500.0,0.00031232,2]
[311615959,1705265482106,-500.0,0.00031232,2]
[311615960,1705265482115,-1229.11,0.00031232,2]
[311615961,1705265482127,-1106.76,0.00031232,2]
[311615962,1705265482138,-500.0,0.00031232,2]
[311615963,1705265482148,-500.0,0.00031232,2]
[311615964,1705265482157,-500.0,0.00031232,2]
[311615965,1705265482167,-894.93,0.00031232,2]
[311615966,1705265482176,-608.9,0.00031232,2]
[311615967,1705265482186,-500.0,0.00031232,2]
[311615968,1705265482483,-946.64,0.00031232,2]
[311615969,1705265482496,-619.49,0.00031232,2]
[311615970,1705265482505,-500.0,0.00031232,2]
[311615971,1705265482515,-500.0,0.00031232,2]
[311615972,1705265482524,-868.77,0.00031232,2]
[311615973,1705265482534,-500.0,0.00031232,2]
[311615974,1705265482544,-500.0,0.00031232,2]
[311615975,1705265482553,-500.0,0.00031232,2]
[311615976,1705265482562,-500.0,0.00031232,2]
[311615977,1705265482571,-500.0,0.00031232,2]
[311615978,1705265482581,-500.0,0.00031232,2]
[311615979,1705265482590,-578.25,0.00031232,2]
[311615980,1705265482599,-500.0,0.00031232,2]
[311615981,1705265482608,-500.0,0.00031232,2]
[311615982,1705265482620,-500.0,0.00031232,2]
[311615983,1705265482630,-500.0,0.00031232,2]
[311615984,1705265482639,-532.95,0.00031232,2]
[311615985,1705265482649,-1204.84,0.00031232,2]
[311615986,1705265482658,-500.0,0.00031232,2]
[311615987,1705265482667,-500.0,0.00031232,2]
[311615988,1705265482677,-495.50468677,0.00031232,2]
[311615989,1705265482686,-500.0,0.00031232,2]
[311615990,1705265482696,-545.29,0.00031232,2]
[311615991,1705265482705,-500.0,0.00031232,2]
[311615992,1705265482715,-670.63,0.00031232,2]
[311615993,1705265482724,-523.04,0.00031232,2]
[311615994,1705265482734,-500.0,0.00031232,2]
[311615995,1705265482747,-500.0,0.00031232,2]
[311615996,1705265482756,-500.0,0.00031232,2]
[311615997,1705265482765,-500.0,0.00031232,2]
[311615998,1705265482774,-636.75,0.00031232,2]
[311615999,1705265482784,-450.32620786,0.00031232,2]
[311616000,1705265482794,-500.0,0.00031232,2]
[311616001,1705265482803,-596.02,0.00031232,2]
[311616002,1705265482813,-1015.13,0.00031232,2]
[311616003,1705265482824,-500.0,0.00031232,2]
[311616004,1705265482833,-500.0,0.00031232,2]
[311616005,1705265482844,-851.16,0.00031232,2]
[311616006,1705265482853,-1744.35,0.00031232,2]
[311616007,1705265482874,-500.0,0.00031232,2]
[311616008,1705265482885,-500.0,0.00031232,2]
[311616009,1705265482896,-536.9,0.00031232,2]
[311616010,1705265482907,-846.45,0.00031232,2]
[311616011,1705265482916,-500.0,0.00031232,2]
[311616012,1705265482927,-500.0,0.00031232,2]
[311616013,1705265482936,-500.0,0.00031232,2]
[311616014,1705265482947,-607.07,0.00031232,2]
[311616015,1705265482956,-1022.21,0.00031232,2]
[311616016,1705265482966,-797.3,0.00031232,2]
[311616017,1705265482976,-500.0,0.00031232,2]
[311616018,1705265482986,-560.52,0.00031232,2]
[311616019,1705265482995,-1056.73,0.00031232,2]
[311616020,1705265483004,-500.0,0.00031232,2]
[311616021,1705265483014,-546.08,0.00031232,2]
[311616022,1705265483024,-1547.25,0.00031232,2]
[311616023,1705265483033,-715.62,0.00031232,2]
[311616024,1705265483043,-500.0,0.00031232,2]
[311616025,1705265483053,-1245.22,0.00031232,2]
[311616026,1705265483063,-500.0,0.00031232,2]
[311616027,1705265483073,-900.1,0.00031232,2]
[311616028,1705265483083,-500.0,0.00031232,2]
[311616029,1705265483093,-500.0,0.00031232,2]
[311616030,1705265483104,-398.77411844,0.00031232,2]
[311616031,1705265483113,-2718.67,0.00031232,2]
[311616032,1705265483125,-500.0,0.00031232,2]
[311616033,1705265483136,-500.0,0.00031232,2]
[311616034,1705265483146,-500.0,0.00031232,2]
[311616035,1705265483156,-679.75,0.00031232,2]
[311616036,1705265483166,-650.18,0.00031232,2]
[311616037,1705265483176,-1251.06,0.00031232,2]
[311616038,1705265483186,-500.0,0.00031232,2]
[311616039,1705265483195,-500.0,0.00031232,2]
[311616040,1705265483205,-983.25,0.00031232,2]
[311616041,1705265483215,-500.0,0.00031232,2]
[311616042,1705265483225,-500.0,0.00031232,2]
[311616043,1705265483235,-2249.92,0.00031232,2]
[311616044,1705265483245,-500.0,0.00031232,2]
[311616045,1705265483255,-595.82,0.00031232,2]
[311616046,1705265483264,-500.0,0.00031232,2]
[311616047,1705265483274,-500.0,0.00031232,2]
[311616048,1705265483283,-500.0,0.00031232,2]
[311616049,1705265483293,-500.0,0.00031232,2]
[311616050,1705265483303,-500.0,0.00031232,2]
[311616051,1705265483313,-1879.49,0.00031232,2]
[311616052,1705265483322,-979.35,0.00031232,2]
[311616053,1705265483332,-669.74,0.00031232,2]
[311616054,1705265483342,-629.35,0.00031232,2]
[311616055,1705265483352,-500.0,0.00031232,2]
[311616056,1705265483362,-645.75,0.00031232,2]
[311616057,1705265483372,-905.95,0.00031232,2]
[311616058,1705265483382,-689.93,0.00031232,2]
[311616059,1705265483392,-500.0,0.00031232,2]
[311616060,1705265483401,-500.0,0.00031232,2]
[311616061,1705265483411,-658.52,0.00031232,2]
[311616062,1705265483421,-500.0,0.00031232,2]
[311616063,1705265483431,-500.0,0.00031232,2]
[311616064,1705265483441,-500.0,0.00031232,2]
[311616065,1705265483451,-1000.92,0.00031232,2]
[311616066,1705265483460,-500.0,0.00031232,2]
[311616067,1705265483470,-584.45,0.00031232,2]
[311616068,1705265483479,-500.0,0.00031232,2]
[311616069,1705265483489,-500.0,0.00031232,2]
[311616070,1705265483499,-500.0,0.00031232,2]
[311616071,1705265483509,-500.0,0.00031232,2]
[311616072,1705265483519,-500.0,0.00031232,2]
[311616073,1705265483528,-500.0,0.00031232,2]
[311616074,1705265483538,-646.38,0.00031232,2]
[311616075,1705265483547,-596.4,0.00031232,2]
[311616076,1705265483556,-675.0,0.00031232,2]
[311616077,1705265483566,-500.0,0.00031232,2]
[311616078,1705265483575,-886.22,0.00031232,2]
[311616079,1705265483585,-679.48,0.00031232,2]
[311616080,1705265483594,-698.99,0.00031232,2]
[311616081,1705265483603,-567.27,0.00031232,2]
[311616082,1705265483613,-1207.58,0.00031232,2]
[311616083,1705265483624,-692.03,0.00031232,2]
[311616084,1705265483633,-4337.15,0.00031232,2]
[311616085,1705265483643,-1455.02,0.00031232,2]
[311616086,1705265483652,-718.79,0.00031232,2]
[311616087,1705265483661,-625.0649049,0.00031232,2]
[311616088,1705265483671,-852.88,0.00031232,2]
[311616089,1705265483680,-500.0,0.00031232,2]
[311616090,1705265483690,-500.0,0.00031232,2]
[311616091,1705265483699,-902.9,0.00031232,2]
[311616092,1705265483709,-500.0,0.00031232,2]
[311616093,1705265483719,-500.0,0.00031232,2]
[311616094,1705265483729,-500.0,0.00031232,2]
[311616095,1705265483738,-500.0,0.00031232,5]
[311616096,1705265483747,-500.0,0.00031232,2]
[311616097,1705265483757,-746.49,0.00031232,2]
[311616098,1705265483767,-500.0,0.00031232,2]
[311616099,1705265483776,-541.15,0.00031232,2]
[311616100,1705265483786,-500.0,0.00031232,2]
[311616101,1705265483796,-500.0,0.00031232,2]
[311616102,1705265483805,-500.0,0.00031232,2]
[311616103,1705265483814,-727.08,0.00031232,2]
[311616104,1705265483824,-918.26,0.00031232,2]
[311616105,1705265483833,-7127.94,0.00031232,2]
[311616106,1705265483843,-2334.97,0.00031232,2]
[311616107,1705265483853,-571.94,0.00031232,2]
[311616108,1705265483862,-520.99,0.00031232,2]
[311616109,1705265483872,-500.0,0.00031232,2]
[311616110,1705265483881,-500.0,0.00031232,2]
[311616111,1705265483891,-500.0,0.00031232,2]
[311616112,1705265483901,-1278.08,0.00031232,2]
[311616113,1705265483910,-500.0,0.00031232,2]
[311616114,1705265483920,-1335.19,0.00031232,2]
[311616115,1705265483930,-500.0,0.00031232,2]
[311616116,1705265483939,-507.96,0.00031232,2]
[311616117,1705265483949,-2191.12,0.00031232,2]
[311616118,1705265483958,-682.65,0.00031232,2]
[311616119,1705265483967,-500.0,0.00031232,2]
[311616120,1705265483977,-1823.86,0.00031232,2]
[311616121,1705265483986,-651.64,0.00031232,2]
[311616122,1705265483995,-566.33,0.00031232,2]
[311616123,1705265484005,-602.37,0.00031232,2]
[311616124,1705265484014,-883.91,0.00031232,2]
[311616125,1705265484023,-533.49090208,0.00031232,2]
[311616126,1705265484032,-500.0,0.00031232,2]
[311616127,1705265484041,-14316.0,0.00031232,2]
[311616128,1705265484050,-2214.32,0.00031232,2]
[311616129,1705265484060,-1750.64,0.00031232,2]
[311616130,1705265484069,-875.93,0.00031232,2]
[311616131,1705265484078,-500.0,0.00031232,2]
[311616132,1705265484088,-500.0,0.00031232,2]
[311616133,1705265484097,-649.2378357,0.00031232,2]
[311616134,1705265484106,-596.16,0.00031232,2]
[311616135,1705265484115,-846.65,0.00031232,2]
[311616136,1705265484127,-500.0,0.00031232,2]
[311616137,1705265484136,-500.0,0.00031232,2]
[311616138,1705265484145,-1849.03,0.00031232,2]
[311616139,1705265484154,-753.89,0.00031232,2]
[311616140,1705265484163,-500.0,0.00031232,2]
[311616141,1705265484172,-1112.66,0.00031232,2]
[311616142,1705265484182,-1725.14,0.00031232,2]
[311616143,1705265484191,-796.33,0.00031232,2]
[311616144,1705265484200,-500.0,0.00031232,2]
[311616145,1705265484209,-500.0,0.00031232,2]
[311616146,1705265484219,-899.24,0.00031232,2]
[311616147,1705265484228,-808.86,0.00031232,2]
[311616148,1705265484238,-455.59164087,0.00031232,2]
[311616149,1705265484247,-1429.98,0.00031232,2]
[311616150,1705265484257,-500.0,0.00031232,2]
[311616151,1705265484267,-500.0,0.00031232,2]
[311616152,1705265484276,-500.0,0.00031232,2]
[311616153,1705265484285,-524.71,0.00031232,2]
[311616154,1705265484295,-1713.52,0.00031232,2]
[311616155,1705265484304,-1102.84,0.00031232,2]
[311616156,1705265484315,-1116.72,0.00031232,2]
[311616157,1705265484325,-1618.96,0.00031232,2]
[311616158,1705265484334,-500.0,0.00031232,2]
[311616159,1705265484348,-2696.94,0.00031232,2]
[311616160,1705265484359,-794.76,0.00031232,2]
[311616161,1705265484370,-500.0,0.00031232,2]
[311616162,1705265484380,-500.0,0.00031232,2]
[311616163,1705265484390,-724.53,0.00031232,2]
[311616164,1705265484400,-1597.13,0.00031232,2]
[311616165,1705265484409,-737.29,0.00031232,2]
[311616166,1705265484419,-622.57,0.00031232,2]
[311616167,1705265484429,-500.0,0.00031232,2]
[311616168,1705265484439,-1009.68,0.00031232,2]
[311616169,1705265484449,-500.0,0.00031232,2]
[311616170,1705265484460,-640.35,0.00031232,2]
[311616171,1705265484470,-500.0,0.00031232,2]
[311616172,1705265484480,-500.0,0.00031232,2]
[311616173,1705265484490,-500.0,0.00031232,2]
[311616174,1705265484499,-500.0,0.00031232,2]
[311616175,1705265484509,-500.0,0.00031232,2]
[311616176,1705265484520,-1595.29,0.00031232,2]
[311616177,1705265484530,-500.0,0.00031232,2]
[311616178,1705265484540,-500.0,0.00031232,2]
[311616179,1705265484550,-917.26,0.00031232,2]
[311616180,1705265484560,-565.13,0.00031232,2]
[311616181,1705265484570,-2100.41,0.00031232,2]
[311616182,1705265484581,-4300.16,0.00031232,2]
[311616183,1705265484591,-1007.56,0.00031232,2]
[311616184,1705265484601,-776.73,0.00031232,2]
[311616185,1705265484610,-500.0,0.00031232,2]
[311616186,1705265484621,-5057.58,0.00031232,2]
[311616187,1705265484630,-933.45,0.00031232,2]
[311616188,1705265484639,-500.0,0.00031232,2]
[311616189,1705265484649,-531.05,0.00031232,2]
[311616190,1705265484658,-500.0,0.00031232,2]
[311616191,1705265484668,-500.0,0.00031232,2]
[311616192,1705265484677,-720.02,0.00031232,2]
[311616193,1705265484687,-1593.77,0.00031232,2]
[311616194,1705265484696,-500.0,0.00031232,2]
[311616195,1705265484706,-500.0,0.00031232,5]
[311616196,1705265484715,-500.0,0.00031232,2]
[311616197,1705265484726,-500.0,0.00031232,2]
[311616198,1705265484738,-500.0,0.00031232,2]
[311616199,1705265484747,-1573.4,0.00031232,2]
[311616200,1705265484757,-4742.8,0.00031232,2]
[311616201,1705265484766,-500.0,0.00031232,2]
[311616202,1705265484775,-500.0,0.00031232,2]
[311616203,1705265484785,-332.22,0.00031232,2]
[311616204,1705265484794,-500.0,0.00031232,2]
[311616205,1705265484804,-3392.17,0.00031232,2]
[311616206,1705265484965,-881.88,0.00031232,2]
[311616207,1705265484974,-3302.73,0.00031232,2]
[311616208,1705265484983,-755.87,0.00031232,2]
[311616209,1705265484992,-500.0,0.00031232,2]
[311616210,1705265485001,-1145.63,0.00031232,2]
[311616211,1705265485011,-500.0,0.00031232,2]
[311616212,1705265485020,-500.0,0.00031232,2]
[311616213,1705265485029,-500.0,0.00031232,2]
[311616214,1705265485038,-500.0,0.00031232,2]
[311616215,1705265485047,-3349.66,0.00031232,2]
[311616216,1705265485056,-500.0,0.00031232,2]
[311616217,1705265485066,-699.61,0.00031232,2]
[311616218,1705265485075,-911.19,0.00031232,2]
[311616219,1705265485084,-9373.54,0.00031232,2]
[311616220,1705265485093,-1446.11,0.00031232,2]
[311616221,1705265485103,-563.79,0.00031232,2]
[311616222,1705265485112,-500.0,0.00031232,2]
[311616223,1705265485121,-500.0,0.00031232,2]
[311616224,1705265485130,-1392.74,0.00031232,2]
[311616225,1705265485139,-500.0,0.00031232,2]
[311616226,1705265485149,-500.0,0.00031232,2]
[311616227,1705265485158,-580.88,0.00031232,2]
[311616228,1705265485168,-1674.87,0.00031232,2]
[311616229,1705265485176,-9954.34,0.00031232,2]
[311616230,1705265485186,-2675.53,0.00031232,2]
[311616231,1705265485195,-609.69,0.00031232,2]
[311616232,1705265485204,-638.69,0.00031232,2]
[311616233,1705265485213,-500.0,0.00031232,2]
[311616234,1705265485222,-1402.19,0.00031232,2]
[311616235,1705265485232,-500.0,0.00031232,2]
[311616236,1705265485241,-5600.69,0.00031232,2]
[311616237,1705265485251,-541.21,0.00031232,2]
[311616238,1705265485261,-830.84,0.00031232,2]
[311616239,1705265485271,-2246.95,0.00031232,2]
[311616240,1705265485280,-500.0,0.00031232,2]
[311616241,1705265485290,-500.0,0.00031232,2]
[311616242,1705265485300,-3335.08,0.00031232,2]
[311616243,1705265485309,-500.0,0.00031232,2]
[311616244,1705265485319,-924.51,0.00031232,2]
[311616245,1705265485329,-10595.33,0.00031232,2]
[311616246,1705265485338,-500.0,0.00031232,2]
[311616247,1705265485347,-836.16,0.00031232,2]
[311616248,1705265485357,-500.0,0.00031232,2]
[311616249,1705265485367,-500.0,0.00031232,2]
[311616250,1705265485377,-500.0,0.00031232,2]
[311616251,1705265485387,-646.01,0.00031232,2]
[311616252,1705265485396,-500.0,0.00031232,2]
[311616253,1705265485405,-500.0,0.00031232,2]
[311616254,1705265485415,-500.0,0.00031232,2]
[311616255,1705265485424,-500.0,0.00031232,2]
[311616256,1705265485434,-500.0,0.00031232,2]
[311616257,1705265485444,-500.0,0.00031232,2]
[311616258,1705265485453,-500.0,0.00031232,2]
[311616259,1705265485463,-500.0,0.00031232,2]
[311616260,1705265485472,-699.52,0.00031232,2]
[311616261,1705265485481,-1637.96,0.00031232,2]
[311616262,1705265485491,-3401.5,0.00031232,2]
[311616263,1705265485500,-500.0,0.00031232,2]
[311616264,1705265485510,-3225.32,0.00031232,2]
[311616265,1705265485519,-500.0,0.00031232,2]
[311616266,1705265485528,-500.0,0.00031232,2]
[311616267,1705265485537,-500.0,0.00031232,2]
[311616268,1705265485546,-500.0,0.00031232,2]
[311616269,1705265485556,-1658.41,0.00031232,2]
[311616270,1705265485565,-500.0,0.00031232,2]
[311616271,1705265485574,-898.47,0.00031232,2]
[311616272,1705265485584,-232.81251031,0.00031232,2]
[311616273,1705265485593,-747.38,0.00031232,2]
[311616274,1705265485603,-502.0,0.00031232,2]
[311616275,1705265485613,-3294.26,0.00031232,2]
[311616276,1705265485622,-500.0,0.00031232,2]
[311616277,1705265485631,-781.12,0.00031232,2]
[311616278,1705265485643,-2934.21,0.00031232,2]
[311616279,1705265485653,-28330.08,0.00031232,2]
[311616280,1705265485662,-1324.02,0.00031232,2]
[311616281,1705265485672,-1385.96,0.00031232,2]
[311616282,1705265485686,-509.43,0.00031232,2]
[311616283,1705265485695,-500.0,0.00031232,2]
[311616284,1705265485705,-915.45,0.00031232,2]
[311616285,1705265485714,-500.0,0.00031232,2]
[311616286,1705265485724,-500.0,0.00031232,2]
[311616287,1705265485734,-2258.81,0.00031232,2]
[311616288,1705265485745,-993.95,0.00031232,2]
[311616289,1705265485754,-500.0,0.00031232,2]
[311616290,1705265485763,-630.07,0.00031232,2]
[311616291,1705265485773,-500.0,0.00031232,2]
[311616292,1705265485782,-500.0,0.00031232,2]
[311616293,1705265485791,-663.38,0.00031232,2]
[311616294,1705265485801,-534.75,0.00031232,2]
[311616295,1705265485810,-7238.69,0.00031232,2]
[311616296,1705265485819,-2077.72,0.00031232,2]
[311616297,1705265485829,-1376.21,0.00031232,2]
[311616298,1705265485838,-500.0,0.00031232,2]
[311616299,1705265485847,-1332.9,0.00031232,2]
[311616300,1705265485856,-500.0,0.00031232,2]
[311616301,1705265485865,-1108.32,0.00031232,2]
[311616302,1705265485875,-560.24,0.00031232,2]
[311616303,1705265485884,-500.0,0.00031232,2]
[311616304,1705265485893,-691.92,0.00031232,2]
[311616305,1705265485902,-500.0,0.00031232,2]
[311616306,1705265485912,-644.63,0.00031232,2]
[311616307,1705265485922,-917.54,0.00031232,2]
[311616308,1705265485931,-500.0,0.00031232,2]
[311616309,1705265485940,-4169.87,0.00031232,2]
[311616310,1705265485950,-503.48,0.00031232,2]
[311616311,1705265485959,-810.05,0.00031232,2]
[311616312,1705265485969,-500.0,0.00031232,2]
[311616313,1705265485978,-799.56,0.00031232,2]
[311616314,1705265485988,-500.0,0.00031232,2]
[311616315,1705265485997,-907.45,0.00031232,2]
[311616316,1705265486007,-500.0,0.00031232,2]
[311616317,1705265486016,-767.29,0.00031232,2]
[311616318,1705265486026,-733.07,0.00031232,2]
[311616319,1705265486035,-500.0,0.00031232,2]
[311616320,1705265486044,-6057.77,0.00031232,2]
[311616321,1705265486054,-500.0,0.00031232,2]
[311616322,1705265486063,-1447.4,0.00031232,2]
[311616323,1705265486073,-1557.23,0.00031232,2]
[311616324,1705265486082,-500.0,0.00031232,2]
[311616325,1705265486092,-1520.88,0.00031232,2]
[311616326,1705265486102,-500.0,0.00031232,2]
[311616327,1705265486111,-500.0,0.00031232,2]
[311616328,1705265486120,-500.0,0.00031232,2]
[311616329,1705265486130,-1561.7,0.00031232,2]
[311616330,1705265486139,-500.0,0.00031232,2]
[311616331,1705265486149,-2650.58,0.00031232,2]
[311616332,1705265486158,-16510.87,0.00031232,2]
[311616333,1705265486168,-500.0,0.00031232,2]
[311616334,1705265486177,-500.0,0.00031232,2]
[311616335,1705265486187,-1302.74,0.00031232,2]
[311616336,1705265486196,-587.88,0.00031232,2]